[Event "Titled Tuesday Blitz August 22 Early 2023"]
[White "Mekhitarian, Krikor Sevag"]
[Black "Sarana, Alexey"]
[WhiteFideId "2107660"]
[BlackFideId "24133795"]
[WhiteElo "2886"]
[BlackElo "3036"]
[Result "0-1"]
[Round "8"]
[TimeControl "180+1"]
[Date "2023.08.22"]
[WhiteClock "0:00:00"]
[BlackClock "0:00:15"]
[Board "8"]

1. Nf3 {[%clk 0:03:00]}  d5 {[%clk 0:02:57]} 2. c4 {[%clk 0:03:01]}  d4 {[%clk 0:02:51]} 3. b4 {[%clk 0:03:00]}  f6 {[%clk 0:02:51]} 4. e3 {[%clk 0:02:57]}  e5 {[%clk 0:02:46]} 5. c5 {[%clk 0:02:56]}  a5 {[%clk 0:02:46]} 6. Qa4+ {[%clk 0:02:56]}  Qd7 {[%clk 0:02:46]} 7. Bb5 {[%clk 0:02:51]}  c6 {[%clk 0:02:46]} 8. Bc4 {[%clk 0:02:52]}  dxe3 {[%clk 0:02:46]} 9. fxe3 {[%clk 0:02:47]}  Qg4 {[%clk 0:02:46]} 10. Qb3 {[%clk 0:02:01]}  Qxg2 {[%clk 0:02:44]} 11. Rg1 {[%clk 0:01:36]}  Qxf3 {[%clk 0:02:39]} 12. Bxg8 {[%clk 0:01:36]}  Rxg8 {[%clk 0:01:56]} 13. Qxg8 {[%clk 0:01:33]}  Bg4 {[%clk 0:01:57]} 14. Nc3 {[%clk 0:01:08]}  axb4 {[%clk 0:01:55]} 15. Rg3 {[%clk 0:01:01]}  Qh1+ {[%clk 0:01:53]} 16. Kf2 {[%clk 0:00:56]}  Qxh2+ {[%clk 0:01:53]} 17. Rg2 {[%clk 0:00:53]}  Qh4+ {[%clk 0:01:54]} 18. Kg1 {[%clk 0:00:50]}  bxc3 {[%clk 0:01:54]} 19. Rb1 {[%clk 0:00:39]}  Nd7 {[%clk 0:01:54]} 20. Rxb7 {[%clk 0:00:33]}  c2 {[%clk 0:01:00]} 21. Bb2 {[%clk 0:00:16]}  Rd8 {[%clk 0:00:37]} 22. d4 {[%clk 0:00:11]}  Qh3 {[%clk 0:00:27]} 23. Bc1 {[%clk 0:00:06]}  Qh5 {[%clk 0:00:23]} 24. a4 {[%clk 0:00:03]}  Nxc5 {[%clk 0:00:16]} 25. Rxg4 {[%clk 0:00:00]}  Qxg4+ {[%clk 0:00:15]} 0-1


[Site "https://www.chess.com"]

[Event "Titled Tuesday Blitz August 22 Early 2023"]
[White "Cordova, Emilio"]
[Black "Terry, Renato"]
[WhiteFideId "3801497"]
[BlackFideId "3803457"]
[WhiteElo "2886"]
[BlackElo "2958"]
[Result "0-1"]
[Round "8"]
[TimeControl "180+1"]
[Date "2023.08.22"]
[WhiteClock "0:00:00"]
[BlackClock "0:00:05"]
[Board "9"]

1. Nf3 {[%clk 0:02:35]}  d5 {[%clk 0:02:36]} 2. e3 {[%clk 0:02:36]}  Nf6 {[%clk 0:02:36]} 3. c4 {[%clk 0:02:37]}  e6 {[%clk 0:02:36]} 4. b3 {[%clk 0:02:37]}  g6 {[%clk 0:02:34]} 5. Bb2 {[%clk 0:02:38]}  Bg7 {[%clk 0:02:35]} 6. cxd5 {[%clk 0:02:38]}  exd5 {[%clk 0:02:34]} 7. Be2 {[%clk 0:02:39]}  O-O {[%clk 0:02:34]} 8. O-O {[%clk 0:02:39]}  a5 {[%clk 0:02:29]} 9. Nc3 {[%clk 0:02:39]}  Re8 {[%clk 0:02:29]} 10. Rc1 {[%clk 0:02:38]}  c6 {[%clk 0:02:29]} 11. a3 {[%clk 0:02:37]}  Qd6 {[%clk 0:02:26]} 12. d3 {[%clk 0:02:37]}  Nbd7 {[%clk 0:02:26]} 13. Re1 {[%clk 0:02:35]}  h6 {[%clk 0:02:24]} 14. Bf1 {[%clk 0:02:35]}  b5 {[%clk 0:02:13]} 15. Ne2 {[%clk 0:02:32]}  c5 {[%clk 0:02:01]} 16. Nc3 {[%clk 0:02:27]}  Ba6 {[%clk 0:02:00]} 17. a4 {[%clk 0:02:18]}  b4 {[%clk 0:01:39]} 18. Nb5 {[%clk 0:02:18]}  Bxb5 {[%clk 0:01:40]} 19. axb5 {[%clk 0:02:19]}  Rec8 {[%clk 0:01:16]} 20. d4 {[%clk 0:02:18]}  Ne4 {[%clk 0:01:16]} 21. dxc5 {[%clk 0:02:01]}  Ndxc5 {[%clk 0:01:08]} 22. Bxg7 {[%clk 0:02:02]}  Kxg7 {[%clk 0:01:08]} 23. Nd4 {[%clk 0:01:58]}  Nc3 {[%clk 0:00:38]} 24. Qd2 {[%clk 0:01:56]}  N5e4 {[%clk 0:00:38]} 25. Qb2 {[%clk 0:01:56]}  Qf6 {[%clk 0:00:33]} 26. f3 {[%clk 0:01:56]}  Nd6 {[%clk 0:00:26]} 27. Qd2 {[%clk 0:01:51]}  Rc5 {[%clk 0:00:19]} 28. Bd3 {[%clk 0:01:49]}  Rac8 {[%clk 0:00:19]} 29. Rc2 {[%clk 0:01:48]}  Qe5 {[%clk 0:00:18]} 30. Rec1 {[%clk 0:01:47]}  Qf6 {[%clk 0:00:18]} 31. h3 {[%clk 0:01:45]}  h5 {[%clk 0:00:19]} 32. Ra1 {[%clk 0:01:39]}  Ra8 {[%clk 0:00:18]} 33. Rac1 {[%clk 0:01:37]}  Qe5 {[%clk 0:00:18]} 34. Qf2 {[%clk 0:01:30]}  Re8 {[%clk 0:00:18]} 35. Re1 {[%clk 0:01:30]}  Rec8 {[%clk 0:00:18]} 36. Ra1 {[%clk 0:01:29]}  Ra8 {[%clk 0:00:18]} 37. Re1 {[%clk 0:01:22]}  Re8 {[%clk 0:00:17]} 38. Nc6 {[%clk 0:01:17]}  Qf6 {[%clk 0:00:16]} 39. Nxa5 {[%clk 0:01:17]}  Ndxb5 {[%clk 0:00:14]} 40. e4 {[%clk 0:01:11]}  Nd4 {[%clk 0:00:11]} 41. Nb7 {[%clk 0:00:44]}  Nxc2 {[%clk 0:00:12]} 42. Nxc5 {[%clk 0:00:43]}  Nxe1 {[%clk 0:00:12]} 43. Qxe1 {[%clk 0:00:43]}  dxe4 {[%clk 0:00:09]} 44. Bxe4 {[%clk 0:00:38]}  Qd4+ {[%clk 0:00:09]} 45. Qf2 {[%clk 0:00:39]}  Qxf2+ {[%clk 0:00:08]} 46. Kxf2 {[%clk 0:00:40]}  f5 {[%clk 0:00:08]} 47. Bd3 {[%clk 0:00:39]}  Nd1+ {[%clk 0:00:08]} 48. Kg3 {[%clk 0:00:37]}  Nc3 {[%clk 0:00:04]} 49. Na6 {[%clk 0:00:35]}  Nd5 {[%clk 0:00:04]} 50. Bc4 {[%clk 0:00:35]}  f4+ {[%clk 0:00:04]} 51. Kh2 {[%clk 0:00:33]}  Re5 {[%clk 0:00:04]} 52. Bxd5 {[%clk 0:00:32]}  Rxd5 {[%clk 0:00:05]} 53. Nxb4 {[%clk 0:00:33]}  Rd2 {[%clk 0:00:04]} 54. h4 {[%clk 0:00:31]}  Kf6 {[%clk 0:00:03]} 55. Kh3 {[%clk 0:00:27]}  Kf5 {[%clk 0:00:02]} 56. Nc6 {[%clk 0:00:27]}  Rd1 {[%clk 0:00:03]} 57. Kh2 {[%clk 0:00:26]}  Ke6 {[%clk 0:00:03]} 58. b4 {[%clk 0:00:25]}  Rb1 {[%clk 0:00:03]} 59. b5 {[%clk 0:00:24]}  Kd6 {[%clk 0:00:03]} 60. Nd4 {[%clk 0:00:24]}  Kd5 {[%clk 0:00:03]} 61. Nc6 {[%clk 0:00:23]}  Ke6 {[%clk 0:00:03]} 62. Nd4+ {[%clk 0:00:23]}  Kf6 {[%clk 0:00:04]} 63. Ne2 {[%clk 0:00:21]}  Ke5 {[%clk 0:00:04]} 64. Nc3 {[%clk 0:00:22]}  Rb3 {[%clk 0:00:04]} 65. Ne4 {[%clk 0:00:20]}  Rxb5 {[%clk 0:00:04]} 66. Ng5 {[%clk 0:00:21]}  Rb7 {[%clk 0:00:04]} 67. Ne4 {[%clk 0:00:21]}  Rd7 {[%clk 0:00:05]} 68. Ng5 {[%clk 0:00:21]}  Kf5 {[%clk 0:00:05]} 69. Ne4 {[%clk 0:00:21]}  Re7 {[%clk 0:00:06]} 70. Ng5 {[%clk 0:00:21]}  Re8 {[%clk 0:00:06]} 71. Nh3 {[%clk 0:00:21]}  Rd8 {[%clk 0:00:06]} 72. Ng5 {[%clk 0:00:21]}  Rd5 {[%clk 0:00:06]} 73. Nh3 {[%clk 0:00:22]}  Ra5 {[%clk 0:00:07]} 74. Ng5 {[%clk 0:00:22]}  Ra4 {[%clk 0:00:07]} 75. Nh3 {[%clk 0:00:22]}  Rb4 {[%clk 0:00:08]} 76. Ng5 {[%clk 0:00:22]}  Ke5 {[%clk 0:00:08]} 77. Nf7+ {[%clk 0:00:22]}  Ke6 {[%clk 0:00:08]} 78. Ng5+ {[%clk 0:00:22]}  Kd5 {[%clk 0:00:09]} 79. Nh3 {[%clk 0:00:22]}  Ke5 {[%clk 0:00:09]} 80. Kg1 {[%clk 0:00:21]}  Rb2 {[%clk 0:00:08]} 81. Kh2 {[%clk 0:00:22]}  Ra2 {[%clk 0:00:08]} 82. Kg1 {[%clk 0:00:22]}  Rc2 {[%clk 0:00:08]} 83. Kh2 {[%clk 0:00:22]}  Rc4 {[%clk 0:00:09]} 84. Kg1 {[%clk 0:00:22]}  Kd5 {[%clk 0:00:09]} 85. Kh2 {[%clk 0:00:22]}  Kc5 {[%clk 0:00:09]} 86. Ng5 {[%clk 0:00:20]}  Kd5 {[%clk 0:00:09]} 87. Nh3 {[%clk 0:00:20]}  Rd4 {[%clk 0:00:10]} 88. Kg1 {[%clk 0:00:19]}  Kc4 {[%clk 0:00:10]} 89. Kf2 {[%clk 0:00:20]}  Kc3 {[%clk 0:00:10]} 90. Ng5 {[%clk 0:00:20]}  Rd2+ {[%clk 0:00:10]} 91. Kg1 {[%clk 0:00:20]}  Kd3 {[%clk 0:00:08]} 92. Ne6 {[%clk 0:00:19]}  Ke3 {[%clk 0:00:08]} 93. Nf8 {[%clk 0:00:19]}  Rd6 {[%clk 0:00:07]} 94. Nh7 {[%clk 0:00:19]}  Rd1+ {[%clk 0:00:06]} 95. Kh2 {[%clk 0:00:19]}  Kf2 {[%clk 0:00:05]} 96. Ng5 {[%clk 0:00:19]}  Kf1 {[%clk 0:00:04]} 97. Nh3 {[%clk 0:00:19]}  Rd4 {[%clk 0:00:04]} 98. Kh1 {[%clk 0:00:20]}  Rc4 {[%clk 0:00:04]} 99. Kh2 {[%clk 0:00:20]}  Rb4 {[%clk 0:00:04]} 100. Kh1 {[%clk 0:00:20]}  Ke2 {[%clk 0:00:05]} 101. Kh2 {[%clk 0:00:21]}  Ke3 {[%clk 0:00:05]} 102. Ng5 {[%clk 0:00:19]}  Rb5 {[%clk 0:00:06]} 103. Ne4 {[%clk 0:00:19]}  Re5 {[%clk 0:00:06]} 104. Ng5 {[%clk 0:00:17]}  Rxg5 {[%clk 0:00:03]} 105. hxg5 {[%clk 0:00:17]}  Kf2 {[%clk 0:00:03]} 106. Kh3 {[%clk 0:00:17]}  Ke2 {[%clk 0:00:02]} 107. Kh4 {[%clk 0:00:15]}  Ke3 {[%clk 0:00:02]} 108. Kh3 {[%clk 0:00:15]}  Kf2 {[%clk 0:00:03]} 109. Kh2 {[%clk 0:00:15]}  Ke2 {[%clk 0:00:03]} 110. Kh3 {[%clk 0:00:15]}  Ke3 {[%clk 0:00:03]} 111. Kh2 {[%clk 0:00:15]}  Kd4 {[%clk 0:00:03]} 112. Kh3 {[%clk 0:00:08]}  Ke5 {[%clk 0:00:04]} 113. g4 {[%clk 0:00:08]}  fxg3 {[%clk 0:00:03]} 114. Kxg3 {[%clk 0:00:09]}  Kf5 {[%clk 0:00:04]} 115. f4 {[%clk 0:00:01]}  Ke4 {[%clk 0:00:05]} 116. Kh3 {[%clk 0:00:00]}  Kxf4 {[%clk 0:00:05]} 0-1


[Site "https://www.chess.com"]

[Event "Titled Tuesday Blitz August 22 Early 2023"]
[White "JeRoma71"]
[Black "Bluebaum, Matthias"]
[BlackFideId "24651516"]
[WhiteElo "2874"]
[BlackElo "3017"]
[Result "1/2-1/2"]
[Round "8"]
[TimeControl "180+1"]
[Date "2023.08.22"]
[WhiteClock "0:00:09"]
[BlackClock "0:00:08"]
[Board "11"]

1. Nf3 {[%clk 0:03:00]}  d5 {[%clk 0:02:58]} 2. g3 {[%clk 0:02:59]}  Nf6 {[%clk 0:02:58]} 3. Bg2 {[%clk 0:02:59]}  e6 {[%clk 0:02:59]} 4. O-O {[%clk 0:03:00]}  Be7 {[%clk 0:03:00]} 5. d3 {[%clk 0:03:00]}  O-O {[%clk 0:03:00]} 6. Nbd2 {[%clk 0:03:01]}  c5 {[%clk 0:03:00]} 7. e4 {[%clk 0:03:01]}  Nc6 {[%clk 0:03:01]} 8. Re1 {[%clk 0:03:02]}  h6 {[%clk 0:03:01]} 9. c3 {[%clk 0:03:01]}  a5 {[%clk 0:03:01]} 10. a4 {[%clk 0:03:01]}  b6 {[%clk 0:03:01]} 11. exd5 {[%clk 0:03:01]}  exd5 {[%clk 0:03:01]} 12. Nb1 {[%clk 0:03:02]}  Bf5 {[%clk 0:02:58]} 13. Na3 {[%clk 0:03:01]}  Bd6 {[%clk 0:02:58]} 14. Nb5 {[%clk 0:03:01]}  Bb8 {[%clk 0:02:58]} 15. d4 {[%clk 0:03:00]}  Be4 {[%clk 0:02:53]} 16. Be3 {[%clk 0:02:59]}  c4 {[%clk 0:02:51]} 17. Bf1 {[%clk 0:02:53]}  Re8 {[%clk 0:02:45]} 18. Nd2 {[%clk 0:02:51]}  Bg6 {[%clk 0:02:41]} 19. Bg2 {[%clk 0:02:51]}  Qd7 {[%clk 0:02:36]} 20. b3 {[%clk 0:02:48]}  cxb3 {[%clk 0:02:34]} 21. Qxb3 {[%clk 0:02:49]}  Na7 {[%clk 0:02:21]} 22. c4 {[%clk 0:02:44]}  Nxb5 {[%clk 0:02:10]} 23. Qxb5 {[%clk 0:02:45]}  Ra7 {[%clk 0:02:01]} 24. Qxb6 {[%clk 0:02:29]}  dxc4 {[%clk 0:01:51]} 25. Bc6 {[%clk 0:02:26]}  Qd8 {[%clk 0:01:40]} 26. Nxc4 {[%clk 0:02:12]}  Qxb6 {[%clk 0:01:15]} 27. Nxb6 {[%clk 0:02:13]}  Rd8 {[%clk 0:01:15]} 28. d5 {[%clk 0:02:09]}  Be5 {[%clk 0:01:05]} 29. Nc4 {[%clk 0:01:40]}  Bxa1 {[%clk 0:01:02]} 30. Bxa7 {[%clk 0:01:40]}  Bc3 {[%clk 0:01:02]} 31. Rc1 {[%clk 0:01:38]}  Bb4 {[%clk 0:00:59]} 32. Bb6 {[%clk 0:01:36]}  Rc8 {[%clk 0:00:56]} 33. Bxa5 {[%clk 0:01:06]}  Bxa5 {[%clk 0:00:55]} 34. Nxa5 {[%clk 0:01:07]}  Nxd5 {[%clk 0:00:56]} 35. Ra1 {[%clk 0:01:03]}  Nb4 {[%clk 0:00:54]} 36. Bf3 {[%clk 0:00:58]}  Rc3 {[%clk 0:00:52]} 37. Kg2 {[%clk 0:00:53]}  Nc2 {[%clk 0:00:53]} 38. Rd1 {[%clk 0:00:44]}  Ra3 {[%clk 0:00:53]} 39. Bc6 {[%clk 0:00:44]}  Nb4 {[%clk 0:00:52]} 40. Bb5 {[%clk 0:00:36]}  Be4+ {[%clk 0:00:52]} 41. Kg1 {[%clk 0:00:36]}  Bf3 {[%clk 0:00:37]} 42. Rb1 {[%clk 0:00:33]}  Nd5 {[%clk 0:00:29]} 43. Nc4 {[%clk 0:00:32]}  Ra2 {[%clk 0:00:29]} 44. Bc6 {[%clk 0:00:27]}  Kh7 {[%clk 0:00:21]} 45. Ne5 {[%clk 0:00:26]}  Nc3 {[%clk 0:00:19]} 46. Re1 {[%clk 0:00:15]}  Bxc6 {[%clk 0:00:18]} 47. Nxc6 {[%clk 0:00:16]}  Rxa4 {[%clk 0:00:18]} 48. Ne5 {[%clk 0:00:16]}  f6 {[%clk 0:00:19]} 49. Nf3 {[%clk 0:00:15]}  Ra2 {[%clk 0:00:20]} 50. Kg2 {[%clk 0:00:15]}  f5 {[%clk 0:00:19]} 51. Nd4 {[%clk 0:00:02]}  g6 {[%clk 0:00:16]} 52. h4 {[%clk 0:00:03]}  Rd2 {[%clk 0:00:15]} 53. Nf3 {[%clk 0:00:03]}  Rb2 {[%clk 0:00:15]} 54. Re7+ {[%clk 0:00:04]}  Kg8 {[%clk 0:00:15]} 55. Ne5 {[%clk 0:00:04]}  Rb6 {[%clk 0:00:15]} 56. Re8+ {[%clk 0:00:04]}  Kg7 {[%clk 0:00:15]} 57. Rc8 {[%clk 0:00:04]}  Nd5 {[%clk 0:00:14]} 58. Rd8 {[%clk 0:00:05]}  Nf6 {[%clk 0:00:14]} 59. Rc8 {[%clk 0:00:05]}  Rb7 {[%clk 0:00:14]} 60. Rc6 {[%clk 0:00:06]}  Re7 {[%clk 0:00:14]} 61. f4 {[%clk 0:00:06]}  Ra7 {[%clk 0:00:14]} 62. Kf3 {[%clk 0:00:06]}  Ra3+ {[%clk 0:00:13]} 63. Kg2 {[%clk 0:00:07]}  Ra2+ {[%clk 0:00:11]} 64. Kg1 {[%clk 0:00:06]}  Ra7 {[%clk 0:00:10]} 65. Kg2 {[%clk 0:00:06]}  h5 {[%clk 0:00:10]} 66. Kf3 {[%clk 0:00:07]}  Rb7 {[%clk 0:00:10]} 67. Kg2 {[%clk 0:00:07]}  Rb2+ {[%clk 0:00:08]} 68. Kg1 {[%clk 0:00:08]}  Rb1+ {[%clk 0:00:08]} 69. Kg2 {[%clk 0:00:08]}  Rb2+ {[%clk 0:00:08]} 70. Kg1 {[%clk 0:00:09]}  Rb3 {[%clk 0:00:07]} 71. Kg2 {[%clk 0:00:09]}  Ra3 {[%clk 0:00:06]} 72. Rc7+ {[%clk 0:00:08]}  Kg8 {[%clk 0:00:06]} 73. Nxg6 {[%clk 0:00:08]}  Ra2+ {[%clk 0:00:06]} 74. Kf1 {[%clk 0:00:08]}  Ng4 {[%clk 0:00:03]} 75. Ne7+ {[%clk 0:00:07]}  Kf8 {[%clk 0:00:04]} 76. Nxf5 {[%clk 0:00:08]}  Rd2 {[%clk 0:00:04]} 77. Rc8+ {[%clk 0:00:08]}  Kf7 {[%clk 0:00:04]} 78. Rc5 {[%clk 0:00:08]}  Nh2+ {[%clk 0:00:04]} 79. Ke1 {[%clk 0:00:08]}  Nf3+ {[%clk 0:00:05]} 80. Kf1 {[%clk 0:00:08]}  Kf6 {[%clk 0:00:06]} 81. Ne3 {[%clk 0:00:07]}  Nh2+ {[%clk 0:00:06]} 82. Ke1 {[%clk 0:00:07]}  Nf3+ {[%clk 0:00:07]} 83. Kf1 {[%clk 0:00:08]}  Nh2+ {[%clk 0:00:07]} 84. Kg1 {[%clk 0:00:08]}  Nf3+ {[%clk 0:00:08]} 85. Kf1 {[%clk 0:00:09]} 1/2-1/2


[Site "https://www.chess.com"]

[Event "Titled Tuesday Blitz August 22 Early 2023"]
[White "Elsa167"]
[Black "Le, Tuan Minh"]
[BlackFideId "12401153"]
[WhiteElo "2870"]
[BlackElo "3002"]
[Result "1-0"]
[Round "8"]
[TimeControl "180+1"]
[Date "2023.08.22"]
[WhiteClock "0:00:03"]
[BlackClock "0:00:01"]
[Board "12"]

1. d4 {[%clk 0:03:00]}  d5 {[%clk 0:02:49]} 2. c4 {[%clk 0:03:00]}  e6 {[%clk 0:02:49]} 3. Nf3 {[%clk 0:03:00]}  a6 {[%clk 0:02:46]} 4. cxd5 {[%clk 0:02:59]}  exd5 {[%clk 0:02:46]} 5. Nc3 {[%clk 0:03:00]}  h6 {[%clk 0:02:43]} 6. Bf4 {[%clk 0:02:59]}  Nf6 {[%clk 0:02:36]} 7. e3 {[%clk 0:02:51]}  Bd6 {[%clk 0:02:36]} 8. Bxd6 {[%clk 0:02:51]}  Qxd6 {[%clk 0:02:37]} 9. Bd3 {[%clk 0:02:51]}  O-O {[%clk 0:02:37]} 10. h3 {[%clk 0:02:51]}  b6 {[%clk 0:02:36]} 11. O-O {[%clk 0:02:50]}  Bb7 {[%clk 0:02:36]} 12. Qc2 {[%clk 0:02:45]}  Re8 {[%clk 0:02:34]} 13. Ne5 {[%clk 0:02:36]}  c5 {[%clk 0:02:24]} 14. f4 {[%clk 0:02:36]}  Nc6 {[%clk 0:02:24]} 15. Qf2 {[%clk 0:02:28]}  cxd4 {[%clk 0:02:14]} 16. exd4 {[%clk 0:02:28]}  Qb4 {[%clk 0:02:15]} 17. Rad1 {[%clk 0:01:53]}  Kf8 {[%clk 0:01:48]} 18. Bb1 {[%clk 0:01:44]}  Rad8 {[%clk 0:01:38]} 19. a3 {[%clk 0:01:38]}  Qd6 {[%clk 0:01:38]} 20. Rfe1 {[%clk 0:01:32]}  Na5 {[%clk 0:01:29]} 21. g4 {[%clk 0:01:17]}  Kg8 {[%clk 0:00:44]} 22. g5 {[%clk 0:01:12]}  Ne4 {[%clk 0:00:44]} 23. Bxe4 {[%clk 0:01:07]}  dxe4 {[%clk 0:00:45]} 24. d5 {[%clk 0:01:07]}  hxg5 {[%clk 0:00:34]} 25. Nxe4 {[%clk 0:01:07]}  Qh6 {[%clk 0:00:33]} 26. fxg5 {[%clk 0:01:02]}  Qh5 {[%clk 0:00:22]} 27. Ng3 {[%clk 0:00:49]}  Qxg5 {[%clk 0:00:22]} 28. Nxf7 {[%clk 0:00:36]}  Qh4 {[%clk 0:00:11]} 29. Nxd8 {[%clk 0:00:34]}  Rxd8 {[%clk 0:00:12]} 30. Kh2 {[%clk 0:00:21]}  Rf8 {[%clk 0:00:09]} 31. Qd4 {[%clk 0:00:15]}  Qh6 {[%clk 0:00:04]} 32. Rf1 {[%clk 0:00:14]}  Rd8 {[%clk 0:00:04]} 33. d6 {[%clk 0:00:13]}  Bc8 {[%clk 0:00:03]} 34. Nf5 {[%clk 0:00:12]}  Qh7 {[%clk 0:00:04]} 35. Ne7+ {[%clk 0:00:09]}  Kh8 {[%clk 0:00:04]} 36. Qd3 {[%clk 0:00:08]}  Qh6 {[%clk 0:00:03]} 37. Qg6 {[%clk 0:00:05]}  Qxh3+ {[%clk 0:00:02]} 38. Kg1 {[%clk 0:00:05]}  Bg4 {[%clk 0:00:03]} 39. Rd3 {[%clk 0:00:02]}  Qh4 {[%clk 0:00:02]} 40. Re3 {[%clk 0:00:02]}  Nc4 {[%clk 0:00:02]} 41. Qe4 {[%clk 0:00:03]}  Nxe3 {[%clk 0:00:02]} 42. Ng6+ {[%clk 0:00:02]}  Kg8 {[%clk 0:00:02]} 43. Nxh4 {[%clk 0:00:03]}  Nxf1 {[%clk 0:00:02]} 44. Qxg4 {[%clk 0:00:02]}  Ne3 {[%clk 0:00:02]} 45. Qe6+ {[%clk 0:00:02]}  Kh7 {[%clk 0:00:01]} 46. Qxe3 {[%clk 0:00:03]} 1-0


[Site "https://www.chess.com"]

[Event "Titled Tuesday Blitz August 22 Early 2023"]
[White "Andreikin, Dmitry"]
[Black "Kravtsiv, Martyn"]
[WhiteFideId "4158814"]
[BlackFideId "14113147"]
[WhiteElo "2996"]
[BlackElo "2877"]
[Result "1-0"]
[Round "8"]
[TimeControl "180+1"]
[Date "2023.08.22"]
[WhiteClock "0:00:38"]
[BlackClock "0:00:00"]
[Board "13"]

1. d4 {[%clk 0:03:00]}  Nf6 {[%clk 0:02:59]} 2. c4 {[%clk 0:03:01]}  e6 {[%clk 0:02:59]} 3. Nf3 {[%clk 0:03:01]}  d5 {[%clk 0:02:59]} 4. Bg5 {[%clk 0:03:00]}  h6 {[%clk 0:02:50]} 5. Bxf6 {[%clk 0:02:59]}  Qxf6 {[%clk 0:02:50]} 6. e3 {[%clk 0:03:00]}  Bb4+ {[%clk 0:02:40]} 7. Nbd2 {[%clk 0:02:59]}  O-O {[%clk 0:02:40]} 8. a3 {[%clk 0:02:52]}  Be7 {[%clk 0:02:29]} 9. Qc2 {[%clk 0:02:42]}  c6 {[%clk 0:02:24]} 10. Bd3 {[%clk 0:02:35]}  Nd7 {[%clk 0:02:13]} 11. O-O {[%clk 0:02:35]}  g6 {[%clk 0:02:10]} 12. Rac1 {[%clk 0:02:28]}  Rd8 {[%clk 0:02:05]} 13. Rfd1 {[%clk 0:02:27]}  Bf8 {[%clk 0:02:01]} 14. e4 {[%clk 0:02:24]}  h5 {[%clk 0:01:36]} 15. e5 {[%clk 0:02:18]}  Qe7 {[%clk 0:01:36]} 16. c5 {[%clk 0:02:17]}  Bg7 {[%clk 0:01:27]} 17. b4 {[%clk 0:02:14]}  b5 {[%clk 0:01:13]} 18. a4 {[%clk 0:02:00]}  a6 {[%clk 0:01:12]} 19. a5 {[%clk 0:02:00]}  Nf8 {[%clk 0:01:10]} 20. h4 {[%clk 0:01:58]}  Bh6 {[%clk 0:01:09]} 21. g3 {[%clk 0:01:56]}  Ra7 {[%clk 0:01:09]} 22. Re1 {[%clk 0:01:56]}  Bd7 {[%clk 0:01:02]} 23. Re2 {[%clk 0:01:56]}  Be8 {[%clk 0:01:02]} 24. Rce1 {[%clk 0:01:56]}  Kh8 {[%clk 0:01:02]} 25. Nf1 {[%clk 0:01:52]}  Nh7 {[%clk 0:01:02]} 26. N1h2 {[%clk 0:01:51]}  Bd7 {[%clk 0:00:58]} 27. Kg2 {[%clk 0:01:46]}  Rg8 {[%clk 0:00:58]} 28. Rh1 {[%clk 0:01:39]}  Raa8 {[%clk 0:00:58]} 29. Ng1 {[%clk 0:01:35]}  Raf8 {[%clk 0:00:55]} 30. Nh3 {[%clk 0:01:32]}  f5 {[%clk 0:00:45]} 31. exf6 {[%clk 0:01:23]}  Qxf6 {[%clk 0:00:37]} 32. Re5 {[%clk 0:01:21]}  Rg7 {[%clk 0:00:37]} 33. f4 {[%clk 0:01:19]}  Rfg8 {[%clk 0:00:25]} 34. Nf3 {[%clk 0:01:14]}  Qe7 {[%clk 0:00:19]} 35. Re3 {[%clk 0:01:07]}  Nf6 {[%clk 0:00:16]} 36. Ne5 {[%clk 0:01:07]}  Be8 {[%clk 0:00:16]} 37. Ng5 {[%clk 0:01:08]}  Nh7 {[%clk 0:00:06]} 38. Nef3 {[%clk 0:00:54]}  Bxg5 {[%clk 0:00:04]} 39. hxg5 {[%clk 0:00:53]}  Rf8 {[%clk 0:00:03]} 40. Ne5 {[%clk 0:00:52]}  Rfg8 {[%clk 0:00:03]} 41. g4 {[%clk 0:00:50]}  Nf8 {[%clk 0:00:02]} 42. Reh3 {[%clk 0:00:43]}  Rh7 {[%clk 0:00:03]} 43. Be2 {[%clk 0:00:41]}  Rgg7 {[%clk 0:00:03]} 44. gxh5 {[%clk 0:00:41]}  gxh5 {[%clk 0:00:03]} 45. Bd3 {[%clk 0:00:41]}  Rh6 {[%clk 0:00:00]} 46. Kf2 {[%clk 0:00:38]} 1-0


[Site "https://www.chess.com"]

[Event "Titled Tuesday Blitz August 22 Early 2023"]
[White "Zemlyanskii, Ivan"]
[Black "Demchenko, Anton"]
[WhiteFideId "24249971"]
[BlackFideId "4160258"]
[WhiteElo "2853"]
[BlackElo "2942"]
[Result "0-1"]
[Round "8"]
[TimeControl "180+1"]
[Date "2023.08.22"]
[WhiteClock "0:00:00"]
[BlackClock "0:00:13"]
[Board "16"]

1. d4 {[%clk 0:03:00]}  Nf6 {[%clk 0:02:56]} 2. c4 {[%clk 0:03:01]}  d6 {[%clk 0:02:57]} 3. Nf3 {[%clk 0:02:57]}  Nc6 {[%clk 0:02:57]} 4. Nc3 {[%clk 0:02:55]}  e5 {[%clk 0:02:56]} 5. Bg5 {[%clk 0:02:25]}  h6 {[%clk 0:02:55]} 6. Bxf6 {[%clk 0:02:19]}  Qxf6 {[%clk 0:02:56]} 7. d5 {[%clk 0:02:17]}  Nb8 {[%clk 0:02:49]} 8. e3 {[%clk 0:02:12]}  g6 {[%clk 0:02:49]} 9. Bd3 {[%clk 0:02:08]}  Qe7 {[%clk 0:02:43]} 10. h4 {[%clk 0:02:04]}  f5 {[%clk 0:02:35]} 11. Bc2 {[%clk 0:01:45]}  h5 {[%clk 0:02:29]} 12. Ba4+ {[%clk 0:01:24]}  Kd8 {[%clk 0:02:25]} 13. Qd2 {[%clk 0:01:14]}  Bh6 {[%clk 0:02:24]} 14. O-O-O {[%clk 0:01:14]}  Nd7 {[%clk 0:02:22]} 15. Bxd7 {[%clk 0:00:59]}  Bxd7 {[%clk 0:02:22]} 16. c5 {[%clk 0:01:00]}  Ke8 {[%clk 0:02:09]} 17. Ne2 {[%clk 0:00:51]}  Kf7 {[%clk 0:02:06]} 18. Qc3 {[%clk 0:00:51]}  Bb5 {[%clk 0:02:02]} 19. Neg1 {[%clk 0:00:44]}  Rhe8 {[%clk 0:01:45]} 20. Nh3 {[%clk 0:00:43]}  Kg8 {[%clk 0:01:45]} 21. Nhg5 {[%clk 0:00:41]}  Be2 {[%clk 0:01:28]} 22. Rd2 {[%clk 0:00:34]}  Bxf3 {[%clk 0:01:25]} 23. Nxf3 {[%clk 0:00:33]}  dxc5 {[%clk 0:01:22]} 24. Qb3 {[%clk 0:00:31]}  Qd6 {[%clk 0:01:19]} 25. Qxb7 {[%clk 0:00:28]}  Rab8 {[%clk 0:01:10]} 26. Qc6 {[%clk 0:00:28]}  Red8 {[%clk 0:01:11]} 27. Rhd1 {[%clk 0:00:24]}  Rb6 {[%clk 0:01:10]} 28. Qa4 {[%clk 0:00:22]}  Rdb8 {[%clk 0:01:07]} 29. Ng5 {[%clk 0:00:22]}  Bg7 {[%clk 0:00:59]} 30. Ne6 {[%clk 0:00:22]}  Bf6 {[%clk 0:01:00]} 31. e4 {[%clk 0:00:17]}  Rb4 {[%clk 0:00:59]} 32. Qxa7 {[%clk 0:00:17]}  Bxh4 {[%clk 0:00:51]} 33. Kb1 {[%clk 0:00:13]}  fxe4 {[%clk 0:00:41]} 34. Qxc7 {[%clk 0:00:12]}  Be7 {[%clk 0:00:42]} 35. Qa7 {[%clk 0:00:07]}  c4 {[%clk 0:00:39]} 36. Qe3 {[%clk 0:00:07]}  Kh7 {[%clk 0:00:34]} 37. Rc2 {[%clk 0:00:06]}  Ra8 {[%clk 0:00:31]} 38. f3 {[%clk 0:00:02]}  Qa6 {[%clk 0:00:32]} 39. a3 {[%clk 0:00:02]}  Rb3 {[%clk 0:00:31]} 40. Qxe4 {[%clk 0:00:03]}  Qxa3 {[%clk 0:00:31]} 41. Kc1 {[%clk 0:00:02]}  Rxb2 {[%clk 0:00:13]} 42. Rxb2 {[%clk 0:00:02]}  c3 {[%clk 0:00:13]} 43. Qc2 {[%clk 0:00:00]}  Rb8 {[%clk 0:00:13]} 0-1


[Site "https://www.chess.com"]